fUSD/lending_fUSD_20250105
["ID","MTS","AMOUNT","RATE_DAILY","PERIOD"]
[347741557,1736088662585,-500.0,9.315e-05,2]
[347741558,1736088662595,-500.0,9.315e-05,2]
[347741559,1736088662604,-515.88,9.315e-05,2]
[347741560,1736088662614,-963.0,9.315e-05,2]
[347741561,1736088662624,-556.77,9.315e-05,2]
[347741562,1736088662635,-965.51,9.315e-05,2]
[347741563,1736088662644,-500.0,9.315e-05,2]
[347741564,1736088662653,-632.25,9.315e-05,2]
[347741565,1736088662663,-574.84,9.315e-05,2]
[347741566,1736088662672,-1412.85,9.315e-05,2]
[347741567,1736088662682,-1091.32,9.315e-05,2]
[347741568,1736088662692,-718.45,9.315e-05,2]
[347741569,1736088662702,-1417.04,9.315e-05,2]
[347741570,1736088662713,-500.0,9.315e-05,2]
[347741571,1736088662723,-500.0,9.315e-05,2]
[347741572,1736088662733,-968.22,9.315e-05,2]
[347741573,1736088662742,-555.72,9.315e-05,2]
[347741574,1736088662752,-500.0,9.315e-05,2]
[347741575,1736088662761,-500.0,9.315e-05,2]
[347741576,1736088662771,-605.84,9.315e-05,2]
[347741577,1736088662781,-596.18,9.315e-05,2]
[347741578,1736088662791,-500.0,9.315e-05,2]
[347741579,1736088662801,-610.95,9.315e-05,2]
[347741580,1736088662810,-625.16,9.315e-05,2]
[347741581,1736088662820,-1014.88,9.315e-05,2]
[347741582,1736088662829,-513.35,9.315e-05,2]
[347741583,1736088662838,-764.25,9.315e-05,2]
[347741584,1736088662848,-1217.16,9.315e-05,2]
[347741585,1736088662858,-1217.16,9.315e-05,2]
[347741586,1736088662868,-508.56,9.315e-05,2]
[347741587,1736088662877,-545.42,9.315e-05,2]
[347741588,1736088662886,-1097.3,9.315e-05,2]
[347741589,1736088662896,-768.49,9.315e-05,2]
[347741590,1736088662905,-500.0,9.315e-05,2]
[347741591,1736088662915,-500.0,9.315e-05,2]
[347741592,1736088662925,-563.59,9.315e-05,2]
[347741593,1736088662934,-763.9,9.315e-05,2]
[347741594,1736088662943,-500.0,9.315e-05,2]
[347741595,1736088662952,-566.7,9.315e-05,2]
[347741596,1736088662963,-500.0,9.315e-05,2]
[347741597,1736088662973,-614.33,9.315e-05,2]
[347741598,1736088662982,-500.0,9.315e-05,2]
[347741599,1736088662991,-1046.03,9.315e-05,2]
[347741600,1736088663000,-736.4,9.315e-05,2]
[347741601,1736088663009,-500.0,9.315e-05,2]
[347741602,1736088663019,-500.0,9.315e-05,2]
[347741603,1736088663028,-500.0,9.315e-05,2]
[347741604,1736088663038,-500.0,9.315e-05,2]
[347741605,1736088663047,-527.49,9.315e-05,2]
[347741606,1736088663057,-3361.51,9.315e-05,2]
[347741607,1736088663066,-938.52,9.315e-05,2]
[347741608,1736088663075,-500.0,9.315e-05,2]
[347741609,1736088663085,-500.0,9.315e-05,2]
[347741610,1736088663094,-881.7,9.315e-05,2]
[347741611,1736088663105,-500.0,9.315e-05,2]
[347741612,1736088663114,-500.0,9.315e-05,2]
[347741613,1736088663123,-724.35,9.315e-05,2]
[347741614,1736088663133,-500.0,9.315e-05,2]
[347741615,1736088663146,-3473.0,9.315e-05,2]
[347741616,1736088663156,-500.0,9.315e-05,2]
[347741617,1736088663165,-500.0,9.315e-05,2]
[347741618,1736088663175,-676.76,9.315e-05,2]
[347741619,1736088663184,-500.0,9.315e-05,2]
[347741620,1736088663194,-500.0,9.315e-05,2]
[347741621,1736088663205,-500.0,9.315e-05,2]
[347741622,1736088663215,-500.0,9.315e-05,2]
[347741623,1736088663224,-572.37,9.315e-05,2]
[347741624,1736088663234,-1832.31,9.315e-05,2]
[347741625,1736088663244,-500.0,9.315e-05,2]
[347741626,1736088663254,-500.0,9.315e-05,2]
[347741627,1736088663263,-500.0,9.315e-05,2]
[347741628,1736088663275,-500.0,9.315e-05,2]
[347741629,1736088663285,-526.4,9.315e-05,2]
[347741630,1736088663295,-500.0,9.315e-05,2]
[347741631,1736088663305,-919.97,9.315e-05,2]
[347741632,1736088663316,-2039.82,9.315e-05,2]
[347741633,1736088663325,-802.66,9.315e-05,2]
[347741634,1736088663335,-500.0,9.315e-05,2]
[347741635,1736088663345,-2561.32,9.315e-05,2]
[347741636,1736088663355,-739.71,9.315e-05,2]
[347741637,1736088663367,-558.45,9.315e-05,2]
[347741638,1736088663386,-500.0,9.315e-05,2]
[347741639,1736088663402,-500.0,9.315e-05,2]
[347741640,1736088663411,-389.08587154,9.315e-05,2]
[347741641,1736088663421,-2547.77,9.315e-05,2]
[347741642,1736088663431,-500.0,9.315e-05,2]
[347741643,1736088663441,-628.11,9.315e-05,2]
[347741644,1736088663451,-755.79,9.315e-05,2]
[347741645,1736088663462,-500.0,9.315e-05,2]
[347741646,1736088663472,-1678.51,9.315e-05,2]
[347741647,1736088663482,-500.0,9.315e-05,2]
[347741648,1736088663492,-637.32,9.315e-05,2]
[347741649,1736088663502,-500.0,9.315e-05,2]
[347741650,1736088663512,-1939.56,9.315e-05,2]
[347741651,1736088663521,-500.0,9.315e-05,2]
[347741652,1736088663531,-967.35,9.315e-05,2]
[347741653,1736088663541,-2938.08,9.315e-05,2]
[347741654,1736088663551,-500.0,9.315e-05,2]
[347741655,1736088663562,-1484.18,9.315e-05,2]
[347741656,1736088663572,-575.66,9.315e-05,2]
[347741657,1736088663582,-527.8,9.315e-05,2]
[347741658,1736088663591,-737.38,9.315e-05,2]
[347741659,1736088663602,-7180.0,9.315e-05,2]
[347741660,1736088663611,-500.0,9.315e-05,2]
[347741661,1736088663622,-174.46,9.315e-05,2]
[347741662,1736088663632,-4188.92,9.315e-05,2]
[347741663,1736088663642,-500.0,9.315e-05,2]
[347741664,1736088663652,-500.0,9.315e-05,2]
[347741665,1736088663662,-865.87,9.315e-05,2]
[347741666,1736088663672,-500.0,9.315e-05,2]
[347741667,1736088663682,-699.37,9.315e-05,2]
[347741668,1736088663691,-500.0,9.315e-05,2]
[347741669,1736088663701,-1392.46,9.315e-05,2]
[347741670,1736088663712,-944.8,9.315e-05,2]
[347741671,1736088663722,-500.0,9.315e-05,2]
[347741672,1736088663732,-1443.92,9.315e-05,2]
[347741673,1736088663741,-2079.08,9.315e-05,2]
[347741674,1736088663751,-795.66,9.315e-05,2]
[347741675,1736088663762,-1036.34,9.315e-05,2]
[347741676,1736088663774,-500.0,9.315e-05,2]
[347741677,1736088663787,-5368.55,9.315e-05,2]
[347741678,1736088663800,-1450.42,9.315e-05,2]
[347741679,1736088663812,-500.0,9.315e-05,2]
[347741680,1736088663823,-500.0,9.315e-05,2]
[347741681,1736088663835,-700.3,9.315e-05,2]
[347741682,1736088663847,-2917.33,9.315e-05,2]
[347741683,1736088663860,-1779.94,9.315e-05,2]
[347741684,1736088663872,-1408.14,9.315e-05,2]
[347741685,1736088663885,-500.0,9.315e-05,2]
[347741686,1736088663897,-176.16842143,9.315e-05,2]
[347741687,1736088663910,-500.0,9.315e-05,2]
[347741688,1736088663923,-889.13,9.315e-05,2]
[347741689,1736088663935,-1210.96,9.315e-05,2]
[347741690,1736088663948,-672.79,9.315e-05,2]
[347741691,1736088663960,-500.0,9.315e-05,2]
[347741692,1736088663971,-500.0,9.315e-05,2]
[347741693,1736088663983,-2270.88,9.315e-05,2]
[347741694,1736088663996,-1099.21,9.315e-05,2]
[347741695,1736088664007,-500.0,9.315e-05,2]
[347741696,1736088664019,-500.0,9.315e-05,2]
[347741697,1736088664032,-5212.5,9.315e-05,2]
[347741698,1736088664045,-3236.26,9.315e-05,2]
[347741699,1736088664059,-500.0,9.315e-05,2]
[347741700,1736088664073,-1556.79,9.315e-05,2]
[347741701,1736088664086,-500.0,9.315e-05,2]
[347741702,1736088664099,-756.09,9.315e-05,2]
[347741703,1736088664111,-1042.74,9.315e-05,2]
[347741704,1736088664126,-500.0,9.315e-05,2]
[347741705,1736088664139,-500.0,9.315e-05,2]
[347741706,1736088664151,-4849.9,9.315e-05,2]
[347741707,1736088664165,-500.0,9.315e-05,2]
[347741708,1736088664176,-1032.58,9.315e-05,2]
[347741709,1736088664189,-500.0,9.315e-05,2]
[347741710,1736088664200,-500.0,9.315e-05,2]
[347741711,1736088664215,-704.61,9.315e-05,2]
[347741712,1736088664227,-1168.67,9.315e-05,2]
[347741713,1736088664241,-534.28,9.315e-05,2]
[347741714,1736088664253,-2585.05,9.315e-05,2]
[347741715,1736088664266,-500.0,9.315e-05,2]
[347741716,1736088664278,-1062.79,9.315e-05,2]
[347741717,1736088664289,-500.0,9.315e-05,2]
[347741718,1736088664299,-585.25,9.315e-05,2]
[347741719,1736088664310,-1111.51,9.315e-05,2]
[347741720,1736088664321,-500.0,9.315e-05,2]
[347741721,1736088664334,-2756.73,9.315e-05,2]
[347741722,1736088664348,-868.14,9.315e-05,2]
[347741723,1736088664359,-582.66,9.315e-05,2]
[347741724,1736088664369,-665.5,9.315e-05,2]
[347741725,1736088664383,-904.94,9.315e-05,2]
[347741726,1736088664394,-625.3,9.315e-05,2]
[347741727,1736088664405,-1046.44,9.315e-05,2]
[347741728,1736088664417,-4117.25,9.315e-05,2]
[347741729,1736088664430,-500.0,9.315e-05,2]
[347741730,1736088664443,-862.48,9.315e-05,2]
[347741731,1736088664455,-790.34,9.315e-05,2]
[347741732,1736088664466,-500.0,9.315e-05,2]
[347741733,1736088664477,-2398.78,9.315e-05,2]
[347741734,1736088664487,-971.41,9.315e-05,2]
[347741735,1736088664499,-2131.31,9.315e-05,2]
[347741736,1736088664510,-2160.48,9.315e-05,2]
[347741737,1736088664521,-453.23539204,9.315e-05,2]
[347741738,1736088664531,-500.0,9.315e-05,2]
[347741739,1736088664542,-500.0,9.315e-05,2]
[347741740,1736088664553,-697.71,9.315e-05,2]
[347741741,1736088664564,-2020.06,9.315e-05,2]
[347741742,1736088664575,-500.0,9.315e-05,2]
[347741743,1736088664586,-837.45,9.315e-05,2]
[347741744,1736088664597,-1341.14,9.315e-05,2]
[347741745,1736088664609,-1143.01,9.315e-05,2]
[347741746,1736088664621,-656.43,9.315e-05,2]
[347741747,1736088664632,-500.0,9.315e-05,2]
[347741748,1736088664644,-500.0,9.315e-05,2]
[347741749,1736088664655,-1667.39,9.315e-05,2]
[347741750,1736088664666,-500.0,9.315e-05,2]
[347741751,1736088664677,-500.88,9.315e-05,2]
[347741752,1736088664688,-500.0,9.315e-05,2]
[347741753,1736088664699,-531.88,9.315e-05,2]
[347741754,1736088664712,-500.0,9.315e-05,2]
[347741755,1736088664725,-4384.56,9.315e-05,2]
[347741756,1736088664736,-601.37108564,9.315e-05,2]
[347741757,1736088664748,-1109.43,9.315e-05,2]
[347741758,1736088664759,-679.54,9.315e-05,2]
[347741759,1736088664769,-500.0,9.315e-05,2]
[347741760,1736088664781,-500.0,9.315e-05,2]
[347741761,1736088664793,-818.99,9.315e-05,2]
[347741762,1736088664804,-1244.62,9.315e-05,2]
[347741763,1736088664816,-714.74,9.315e-05,2]
[347741764,1736088664827,-582.89,9.315e-05,2]
[347741765,1736088664838,-1010.03,9.315e-05,2]
[347741766,1736088664849,-510.03913294,9.315e-05,2]
[347741767,1736088664860,-537.31,9.315e-05,2]
[347741768,1736088664872,-4247.44,9.315e-05,2]
[347741769,1736088664883,-241.65396715,9.315e-05,2]
[347741770,1736088664894,-500.0,9.315e-05,2]
[347741771,1736088664907,-1877.91,9.315e-05,2]
[347741772,1736088664918,-1289.27,9.315e-05,2]
[347741773,1736088664929,-771.33,9.315e-05,2]
[347741774,1736088664941,-633.32,9.315e-05,2]
[347741775,1736088664951,-500.0,9.315e-05,2]
[347741776,1736088664961,-881.19,9.315e-05,2]
[347741777,1736088664972,-1161.48,9.315e-05,2]
[347741778,1736088664983,-1415.78,9.315e-05,2]
[347741779,1736088664994,-500.0,9.315e-05,2]
[347741780,1736088665004,-3403.52,9.315e-05,2]
[347741781,1736088665016,-878.66,9.315e-05,2]
[347741782,1736088665029,-500.0,9.315e-05,2]
[347741783,1736088665039,-553.24,9.315e-05,2]
[347741784,1736088665051,-654.57,9.315e-05,2]
[347741785,1736088665062,-500.0,9.315e-05,2]
[347741786,1736088665074,-662.97,9.315e-05,2]
[347741787,1736088665085,-1073.67,9.315e-05,2]
[347741788,1736088665095,-1284.56,9.315e-05,2]
[347741789,1736088665106,-510.2,9.315e-05,2]
[347741790,1736088665117,-623.32,9.315e-05,2]
[347741791,1736088665128,-2312.26,9.315e-05,2]
[347741792,1736088665139,-500.0,9.315e-05,2]
[347741793,1736088665150,-1009.54,9.315e-05,2]
[347741794,1736088665162,-1022.52,9.315e-05,2]
[347741795,1736088665173,-500.0,9.315e-05,2]
[347741796,1736088665184,-746.31,9.315e-05,2]
[347741797,1736088665195,-2040.99,9.315e-05,2]
[347741798,1736088665207,-594.54,9.315e-05,2]
[347741799,1736088665218,-549.79,9.315e-05,2]
[347741800,1736088665229,-920.55,9.315e-05,2]
[347741801,1736088665241,-733.22,9.315e-05,2]
[347741802,1736088665251,-2359.74,9.315e-05,2]
[347741803,1736088665262,-1032.33,9.315e-05,2]
[347741804,1736088665273,-150.0,9.474e-05,2]
[347741805,1736088665284,-3144.317,9.474e-05,2]
[347741806,1736088665295,-191.407,9.474e-05,2]
[347741807,1736088665306,-411.247,9.5e-05,2]
[347741808,1736088665318,-587.0,9.586e-05,2]
[347741809,1736088665329,-500.0,9.588e-05,2]
[347741810,1736088665341,-677.14,9.588e-05,2]
[347741811,1736088665351,-500.0,9.588e-05,2]
[347741812,1736088665363,-1275.61,9.588e-05,2]
[347741813,1736088665374,-500.0,9.589e-05,2]
[347741814,1736088665385,-500.0,9.589e-05,2]
[347741815,1736088665395,-500.0,9.589e-05,2]
[347741816,1736088665406,-760.43,9.589e-05,2]
[347741817,1736088665417,-500.0,9.589e-05,2]
[347741818,1736088665428,-705.02,9.589e-05,2]
[347741819,1736088665438,-552.44,9.589e-05,2]
[347741820,1736088665450,-1434.98,9.589e-05,2]
[347741821,1736088665461,-500.0,9.589e-05,2]
[347741822,1736088665472,-500.0,9.589e-05,2]
[347741823,1736088665483,-500.0,9.589e-05,2]
[347741824,1736088665494,-500.0,9.589e-05,2]
[347741825,1736088665505,-2144.39,9.589e-05,2]
[347741826,1736088665516,-570.39,9.589e-05,2]
[347741827,1736088665528,-500.0,9.589e-05,2]
[347741828,1736088665539,-1799.96,9.589e-05,2]
[347741829,1736088665551,-484.27,9.589e-05,2]
[347741830,1736088665562,-2272.66,9.589e-05,2]
[347741831,1736088665573,-500.0,9.589e-05,2]
[347741832,1736088665584,-500.0,9.589e-05,2]
[347741833,1736088665595,-500.0,9.589e-05,2]
[347741834,1736088665606,-675.29,9.589e-05,2]
[347741835,1736088665617,-500.0,9.589e-05,2]
[347741836,1736088665627,-700.21,9.589e-05,2]
[347741837,1736088665638,-456.70602202,9.589e-05,2]
[347741838,1736088665650,-671.03,9.589e-05,2]
[347741839,1736088665664,-500.0,9.589e-05,2]
[347741840,1736088665675,-3594.34,9.589e-05,2]
[347741841,1736088665686,-500.0,9.589e-05,2]
[347741842,1736088665696,-500.0,9.589e-05,2]
[347741843,1736088665708,-684.64,9.589e-05,2]
[347741844,1736088665718,-500.0,9.589e-05,2]
[347741845,1736088665730,-655.72,9.589e-05,2]
[347741846,1736088665741,-500.0,9.589e-05,2]
[347741847,1736088665751,-500.0,9.589e-05,2]
[347741848,1736088665763,-500.0,9.589e-05,2]
[347741849,1736088665774,-557.9497825,9.589e-05,2]
[347741850,1736088665784,-1298.03,9.589e-05,2]
[347741851,1736088665795,-1098.47,9.589e-05,2]
[347741852,1736088665806,-573.63,9.589e-05,2]
[347741853,1736088665817,-2405.5,9.589e-05,2]
[347741854,1736088665828,-500.0,9.589e-05,2]
[347741855,1736088665838,-500.0,9.589e-05,2]
[347741856,1736088665849,-1388.66,9.589e-05,2]
[347741857,1736088665860,-500.0,9.589e-05,2]
[347741858,1736088665871,-500.0,9.589e-05,2]
[347741859,1736088665882,-1290.85,9.589e-05,2]
[347741860,1736088665892,-594.04,9.589e-05,2]
[347741861,1736088665903,-743.07,9.589e-05,2]
[347741862,1736088665914,-500.0,9.589e-05,2]
[347741863,1736088665924,-1013.41,9.589e-05,2]
[347741864,1736088665934,-368.92,9.589e-05,2]
[347741865,1736088665945,-735.81,9.589e-05,2]
[347741866,1736088665955,-500.0,9.589e-05,2]
[347741867,1736088665967,-500.0,9.589e-05,2]
[347741868,1736088665978,-500.0,9.589e-05,2]
[347741869,1736088665988,-584.3,9.589e-05,2]
[347741870,1736088665999,-2077.18,9.589e-05,2]
[347741871,1736088666010,-1447.55,9.589e-05,2]
[347741872,1736088666020,-500.0,9.589e-05,2]
[347741873,1736088666031,-6663.09,9.589e-05,2]
[347741874,1736088666042,-857.37,9.589e-05,2]
[347741875,1736088666053,-2919.98,9.589e-05,2]
[347741876,1736088666063,-500.0,9.589e-05,2]
[347741877,1736088666075,-500.0,9.589e-05,2]
[347741878,1736088666087,-514.57,9.589e-05,2]
[347741879,1736088666098,-500.0,9.589e-05,2]
[347741880,1736088666110,-500.0,9.589e-05,2]
[347741881,1736088666120,-518.87,9.589e-05,2]
[347741882,1736088666130,-500.0,9.589e-05,2]
[347741883,1736088666142,-3877.66,9.589e-05,2]
[347741884,1736088666153,-625.05,9.589e-05,2]
[347741885,1736088666164,-500.0,9.589e-05,2]
[347741886,1736088666174,-500.0,9.589e-05,2]
[347741887,1736088666185,-161.45,9.589e-05,2]
[347741888,1736088666195,-507.07,9.589e-05,2]
[347741889,1736088666206,-540.94,9.589e-05,2]
[347741890,1736088666217,-446.5095131,9.589e-05,2]
[347741891,1736088666228,-500.0,9.589e-05,2]
[347741892,1736088666238,-500.0,9.589e-05,2]
[347741893,1736088666249,-744.03,9.589e-05,2]
[347741894,1736088666260,-918.85,9.589e-05,2]
[347741895,1736088666270,-500.0,9.589e-05,2]
[347741896,1736088666281,-703.9,9.589e-05,2]
[347741897,1736088666291,-707.26,9.589e-05,2]
[347741898,1736088666301,-500.0,9.589e-05,2]
[347741899,1736088666312,-535.44,9.589e-05,2]
[347741900,1736088666323,-805.02,9.589e-05,2]
[347741901,1736088666333,-1422.38,9.589e-05,2]
[347741902,1736088666344,-500.0,9.589e-05,2]
[347741903,1736088666356,-500.0,9.589e-05,2]
[347741904,1736088666366,-879.47,9.589e-05,2]
[347741905,1736088666379,-559.6,9.589e-05,2]
[347741906,1736088666390,-500.0,9.589e-05,2]
[347741907,1736088666401,-629.53,9.589e-05,2]
[347741908,1736088666411,-500.0,9.589e-05,2]
[347741909,1736088666422,-536.5,9.589e-05,2]
[347741910,1736088666433,-943.81,9.589e-05,2]
[347741911,1736088666444,-500.0,9.589e-05,2]
[347741912,1736088666454,-854.59,9.589e-05,2]
[347741913,1736088666468,-685.17,9.589e-05,2]
[347741914,1736088666479,-500.0,9.589e-05,2]
[347741915,1736088666489,-500.0,9.589e-05,2]
[347741916,1736088666500,-500.0,9.589e-05,2]
[347741917,1736088666511,-500.0,9.589e-05,2]
[347741918,1736088666522,-500.0,9.589e-05,2]
[347741919,1736088666532,-1673.43,9.589e-05,2]
[347741920,1736088666543,-1008.09,9.589e-05,2]
[347741921,1736088666554,-500.0,9.589e-05,2]
[347741922,1736088666564,-500.0,9.589e-05,2]
[347741923,1736088666576,-1008.87,9.589e-05,2]
[347741924,1736088666586,-519.54,9.589e-05,2]
[347741925,1736088666597,-822.67,9.589e-05,2]
[347741926,1736088666608,-500.0,9.589e-05,2]
[347741927,1736088666618,-552.41,9.589e-05,2]
[347741928,1736088666629,-500.0,9.589e-05,2]
[347741929,1736088666639,-578.84,9.589e-05,2]
[347741930,1736088666650,-588.95,9.589e-05,2]
[347741931,1736088666661,-656.59,9.589e-05,2]
[347741932,1736088666671,-860.4,9.589e-05,2]
[347741933,1736088666683,-810.01,9.589e-05,2]
[347741934,1736088666694,-500.0,9.589e-05,2]
[347741935,1736088666705,-798.87,9.589e-05,2]
[347741936,1736088666718,-558.05,9.589e-05,2]
[347741937,1736088666728,-1037.16,9.589e-05,2]
[347741938,1736088666739,-500.0,9.589e-05,2]
[347741939,1736088666750,-500.0,9.589e-05,2]
[347741940,1736088666761,-798.02,9.589e-05,2]
[347741941,1736088666771,-500.0,9.589e-05,2]
[347741942,1736088666782,-500.0,9.589e-05,2]
[347741943,1736088666792,-500.0,9.589e-05,2]
[347741944,1736088666803,-626.85,9.589e-05,2]
[347741945,1736088666813,-920.34,9.589e-05,2]
[347741946,1736088666824,-500.0,9.589e-05,2]
[347741947,1736088666834,-734.38,9.589e-05,2]
[347741948,1736088666845,-500.0,9.589e-05,2]
[347741949,1736088666855,-2241.04,9.589e-05,2]
[347741950,1736088666866,-560.28,9.589e-05,2]
[347741951,1736088666877,-500.0,9.589e-05,2]
[347741952,1736088666887,-500.0,9.589e-05,2]
[347741953,1736088666898,-500.0,9.589e-05,2]
[347741954,1736088666908,-500.0,9.589e-05,2]
[347741955,1736088666919,-500.0,9.589e-05,2]
[347741956,1736088666929,-814.44,9.589e-05,2]
[347741957,1736088666940,-603.48,9.589e-05,2]
[347741958,1736088666951,-686.2,9.589e-05,2]
[347741959,1736088666964,-500.0,9.589e-05,2]
[347741960,1736088666975,-504.64,9.589e-05,2]
[347741961,1736088666985,-500.0,9.589e-05,2]
[347741962,1736088666996,-598.61,9.589e-05,2]
[347741963,1736088667370,-970.15,9.589e-05,2]
[347741964,1736088667404,-500.0,9.589e-05,2]
[347741965,1736088667415,-503.0,9.589e-05,2]
[347741966,1736088667425,-598.92,9.589e-05,2]
[347741967,1736088667435,-870.34,9.589e-05,2]
[347741968,1736088667444,-561.67,9.589e-05,2]
[347741969,1736088667454,-599.13,9.589e-05,2]
[347741970,1736088667465,-577.37,9.589e-05,2]
[347741971,1736088667475,-1374.03,9.589e-05,2]
[347741972,1736088667484,-500.0,9.589e-05,2]
[347741973,1736088667494,-913.29,9.589e-05,2]
[347741974,1736088667504,-1483.17,9.589e-05,2]
[347741975,1736088667513,-607.47,9.589e-05,2]
[347741976,1736088667522,-500.0,9.589e-05,2]
[347741977,1736088667531,-500.0,9.589e-05,2]
[347741978,1736088667540,-543.44,9.589e-05,2]
[347741979,1736088667550,-1286.2,9.589e-05,2]
[347741980,1736088667559,-1384.98,9.589e-05,2]
[347741981,1736088667568,-500.0,9.589e-05,2]
[347741982,1736088667577,-500.0,9.589e-05,2]
[347741983,1736088667585,-515.88,9.589e-05,2]
[347741984,1736088667595,-963.0,9.589e-05,2]
[347741985,1736088667604,-556.77,9.589e-05,2]
[347741986,1736088667613,-965.51,9.589e-05,2]
[347741987,1736088667622,-500.0,9.589e-05,2]
[347741988,1736088667632,-632.25,9.589e-05,2]
[347741989,1736088667641,-574.84,9.589e-05,2]
[347741990,1736088667652,-1412.85,9.589e-05,2]
[347741991,1736088667661,-1091.32,9.589e-05,2]
[347741992,1736088667671,-718.45,9.589e-05,2]
[347741993,1736088667680,-1417.04,9.589e-05,2]
[347741994,1736088667689,-361.12777271,9.589e-05,2]
[347741995,1736088667698,-500.0,9.589e-05,2]
[347741996,1736088667707,-968.22,9.589e-05,2]
[347741997,1736088667718,-555.72,9.589e-05,2]
[347741998,1736088667727,-500.0,9.589e-05,2]
[347741999,1736088667736,-500.0,9.589e-05,2]
[347742000,1736088667745,-605.84,9.589e-05,2]
[347742001,1736088667755,-596.18,9.589e-05,2]
[347742002,1736088667765,-500.0,9.589e-05,2]
[347742003,1736088667774,-610.95,9.589e-05,2]
[347742004,1736088667784,-625.16,9.589e-05,2]
[347742005,1736088667793,-1014.88,9.589e-05,2]
[347742006,1736088667803,-764.25,9.589e-05,2]
[347742007,1736088667812,-1217.16,9.589e-05,2]
[347742008,1736088667823,-1217.16,9.589e-05,2]
[347742009,1736088667832,-508.56,9.589e-05,2]
[347742010,1736088667842,-545.42,9.589e-05,2]
[347742011,1736088667852,-1097.3,9.589e-05,2]
[347742012,1736088667861,-768.49,9.589e-05,2]
[347742013,1736088667870,-500.0,9.589e-05,2]
[347742014,1736088667880,-500.0,9.589e-05,2]
[347742015,1736088667889,-563.59,9.589e-05,2]
[347742016,1736088667899,-763.9,9.589e-05,2]
[347742017,1736088667908,-500.0,9.589e-05,2]
[347742018,1736088667918,-566.7,9.589e-05,2]
[347742019,1736088667928,-500.0,9.589e-05,2]
[347742020,1736088667938,-614.33,9.589e-05,2]
[347742021,1736088667948,-500.0,9.589e-05,2]
[347742022,1736088667959,-1046.03,9.589e-05,2]
[347742023,1736088667968,-736.4,9.589e-05,2]
[347742024,1736088667978,-500.0,9.589e-05,2]
[347742025,1736088667988,-500.0,9.589e-05,2]
[347742026,1736088667998,-456.374606,9.589e-05,2]
[347742027,1736088668008,-527.49,9.589e-05,2]
[347742028,1736088668019,-3361.51,9.589e-05,2]
[347742029,1736088668029,-938.52,9.589e-05,2]
[347742030,1736088668038,-500.0,9.589e-05,2]
[347742031,1736088668046,-500.0,9.589e-05,2]
[347742032,1736088668057,-881.7,9.589e-05,2]
[347742033,1736088668067,-500.0,9.589e-05,2]
[347742034,1736088668077,-500.0,9.589e-05,2]
[347742035,1736088668087,-724.35,9.589e-05,2]
[347742036,1736088668096,-3473.0,9.589e-05,2]
[347742037,1736088668109,-500.0,9.589e-05,2]
[347742038,1736088668119,-500.0,9.589e-05,2]
[347742039,1736088668129,-500.0,9.589e-05,2]
[347742040,1736088668138,-676.76,9.589e-05,2]
[347742041,1736088668148,-500.0,9.589e-05,2]
[347742042,1736088668158,-500.0,9.589e-05,2]
[347742043,1736088668167,-572.37,9.589e-05,2]
[347742044,1736088668177,-1832.31,9.589e-05,2]
[347742045,1736088668187,-500.0,9.589e-05,2]
[347742046,1736088668197,-500.0,9.589e-05,2]
[347742047,1736088668207,-500.0,9.589e-05,2]
[347742048,1736088668217,-500.0,9.589e-05,2]
[347742049,1736088668227,-526.4,9.589e-05,2]
[347742050,1736088668237,-500.0,9.589e-05,2]
[347742051,1736088668247,-919.97,9.589e-05,2]
[347742052,1736088668257,-802.66,9.589e-05,2]
[347742053,1736088668267,-2039.82,9.589e-05,2]
[347742054,1736088668276,-500.0,9.589e-05,2]
[347742055,1736088668287,-739.71,9.589e-05,2]
[347742056,1736088668297,-2561.32,9.589e-05,2]